Cogmind - Beta 17 @@@ ROGUE MODE // 2026.07.15 @ 15:19:13 Player: President Manblast Result: Destroyed by S-43 Plague with Heavy Machine Gun Performance ------------- Evolutions (8) 4000 Regions Visited (22) 4400 Robots Destroyed (342) 1710 Value Destroyed (14823) 14823 Prototype IDs (69) 1380 Alien Tech Used (0) 0 Bonus (4533) 4533 TOTAL SCORE: 30846 Bonus ------- High Alert Combat Kills 780 Follower Combat Kills 2295 Met Data Miner 300 Met Imprinter 300 Was Imprinted 300 Built Enhanced Grunts 300 A7 Reached Mainframe 300 Friendly Fire -42 Cogmind --------- Core Integrity 0/1450 Matter 90/300 Energy 71/100 System Corruption 25% Temperature Cool (4) Movement Flying (37) Location -2/Research Parts ------- > --- POWER (3) -------- (None) > --- PROPULSION (4) --- Nuclear Pulse Array Nuclear Pulse Array > --- UTILITY (12) ----- (None) > --- WEAPON (4) ------- (None) > --- INVENTORY (5) ---- Dispersion Rifle Dispersion Rifle Compact HERF Cannon Enhanced Nova Cannon Gravity Flail Peak State ------------ > --- POWER ------------ Light Particle Reactor Light Particle Reactor Light Particle Reactor > --- PROPULSION ------- Armored Heavy Treads Armored Heavy Treads > --- UTILITY ---------- Coolant Network Huge Storage Unit Machine Analyzer Long-range Sensor Array Improved Signal Interpreter Advanced Terrain Scan Processor Energy Filter Advanced ECM Suite Centrium Medium Armor Plating Graphene Brace Focal Shield > --- WEAPON ----------- Hypervelocity EM Gauss Rifle Dispersion Rifle Long-range Phase Cannon Helical Railgun > --- INVENTORY -------- Micro Antimatter Reactor Compact Wheel Advanced Cooling System Energy Well Advanced Terrain Scanner Improved Medium Armor Plating Centrium Light Armor Plating Centrium Medium Armor Plating Gamma Rifle Gamma Rifle Dispersion Rifle Dispersion Rifle Quantum Rifle Quantum Rifle Precision Phase Gun Disruptor Cannon Compact HERF Cannon Enhanced Nova Cannon Railgun Railgun Enhanced Hardcell Cannon Gamma Bomb Array Fusion Bomb Launcher Improved Plasma Cutter Gravity Flail [Rating: 170] Favorites ----------- Power Angular Momentum Engine Engine Angular Momentum Engine Power Core Neutrino Core Reactor Micro Antimatter Reactor Propulsion Wheel Treads Armored Treads Leg Improved VSS Leg Wheel Wheel Hover Unit Improved Antigrav System Flight Unit Nuclear Pulse Array Utility Huge Storage Unit Device Advanced Heat Sink Storage Huge Storage Unit Processor Advanced Targeting Computer Protection Hardened Medium Armor Plating Weapon Gatling Laser Energy Gun Gatling Laser Energy Cannon Long-range Phase Cannon Ballistic Gun Railgun Ballistic Cannon Light Cannon Launcher Heavy Shock Bomb Launcher Special Weapon Improved Plasma Cutter Impact Weapon Power Maul Piercing Weapon Heavy Pick Build | -11 -10 -10 -10 -9 -8 -7 -7 -7 -6 -6 -6 -6 -6 -5 -5 -5 -5 -5 -4 -3 -3 -2 ------- Run | Yrd Mat Min Exi Min Mat Fac Low Zio Pro Fac Low Low Dat Pro Fac Ext Cet Arc Fac Res Tes Res Slots Evolved 16 | . . . . . 4 2 . . . 2 . . . . 2 . . . 2 2 . 2 Power 2 | . . . . . . . . . . 1 . . . . . . . . . . . 1 Propulsion 2 | . . . . . 1 . . . . . . . . . . . . . . 1 . . Utility 10 | . . . . . 3 1 . . . 1 . . . . 2 . . . 1 1 . 1 Weapon 2 | . . . . . . 1 . . . . . . . . . . . . 1 . . . Parts Attached 307 | 7 13 3 1 4 34 34 1 2 2 23 5 1 . 7 31 22 3 4 13 30 33 34 Power 47 | 1 3 . . 1 3 3 . 1 1 6 . . . 1 6 5 . 2 2 5 4 3 Engine 21 | 1 3 . . 1 2 3 . 1 1 4 . . . 1 2 2 . . . . . . Core 10 | . . . . . 1 . . . . 2 . . . . 4 3 . . . . . . Reactor 16 | . . . . . . . . . . . . . . . . . . 2 2 5 4 3 Propulsion 73 | 2 1 1 . 1 9 10 . . 1 4 . . . 1 8 3 . . 2 8 6 16 Treads 13 | 2 . . . . 2 2 . . . . . . . . . . . . 1 2 . 4 Leg 1 | . . . . . . . . . . . . . . 1 . . . . . . . . Wheel 55 | . 1 1 . 1 7 8 . . 1 4 . . . . 8 3 . . 1 6 6 8 Hover 2 | . . . . . . . . . . . . . . . . . . . . . . 2 Flight 2 | . . . . . . . . . . . . . . . . . . . . . . 2 Utility 94 | 2 3 . 1 2 11 12 1 1 . 8 2 1 . 2 10 8 1 1 4 9 8 7 Device 46 | 1 1 . . 2 3 5 . . . 6 . . . 2 7 3 . 1 3 5 2 5 Storage 8 | 1 2 . 1 . 2 . . . . . . . . . . . . . . . 2 . Processor 6 | . . . . . . 1 . . . . 1 . . . 1 . . . . 3 . . Hackware . | . . . . . . . . . . . . . . . . . . . . . . . Protection 34 | . . . . . 6 6 1 1 . 2 1 1 . . 2 5 1 . 1 1 4 2 Artifact . | . . . . . . . . . . . . . . . . . . . . . . . Weapon 93 | 2 6 2 . . 11 9 . . . 5 3 . . 3 7 6 2 1 5 8 15 8 Energy Gun 58 | 2 1 1 . . 7 7 . . . 5 1 . . 2 6 6 . 1 2 2 10 5 Energy Cannon 6 | . . . . . . . . . . . . . . . . . . . . 3 3 . Ballistic Gun 7 | . 1 . . . . 1 . . . . . . . . . . . . 1 2 2 . Ballistic Cannon 6 | . 3 1 . . 1 . . . . . . . . . . . . . 1 . . . Launcher 8 | . . . . . 2 . . . . . 1 . . . . . 2 . 1 . . 2 Special Weapon 4 | . 1 . . . 1 . . . . . . . . 1 1 . . . . . . . Impact Weapon 2 | . . . . . . 1 . . . . . . . . . . . . . 1 . . Slashing Weapon . | . . . . . . . . . . . . . . . . . . . . . . . Piercing Weapon 2 | . . . . . . . . . . . 1 . . . . . . . . . . 1 Special Melee Weapon . | . . . . . . . . . . . . . . . . . . . . . . . Unidentified Prototypes 22 | . 1 . . 1 3 . . . . 1 . . . 1 . . 1 . 1 1 10 2 Corrupted Parts 5 | . . . . . . . . . . . . . . . . . . 1 1 . . 3 System Corruption 37 | . . . . . . . . . . . . . . . . . . 10 10 . . 17 Parts Lost 89 | . 1 2 . . 7 10 . . . 4 . 1 . 1 8 3 . 1 3 9 10 29 Power 6 | . . . . . . . . . . . . . . . . 1 . . . . . 5 Propulsion 40 | . 1 1 . . 3 5 . . . 2 . . . 1 5 2 . . 2 4 6 8 Utility 25 | . . . . . 2 3 . . . 1 . 1 . . 2 . . 1 1 2 3 9 Weapon 18 | . . 1 . . 2 2 . . . 1 . . . . 1 . . . . 3 1 7 Highest Loss Streak 15 | . 1 2 . . 3 5 . . . 1 . 1 . 1 2 2 . 1 2 4 4 15 To Critical Strikes . | . . . . . . . . . . . . . . . . . . . . . . . Average Backups 22 | 4 13 13 13 14 23 24 23 24 25 24 24 24 25 24 23 23 24 23 23 23 24 22 Power . | . 1 1 1 1 1 1 1 1 1 . 1 . . . . . 1 1 1 1 1 . Propulsion 1 | 3 4 2 2 2 3 3 1 1 1 1 1 1 1 . . 1 1 1 . . . . Utility 9 | . 3 6 6 7 5 9 11 12 13 12 12 11 12 12 10 11 11 10 10 7 8 6 Weapon 10 | 1 4 4 4 4 12 10 10 9 9 9 10 11 12 11 10 9 10 10 10 12 13 14 Tool/Special . | . . . . . . . . . . . . . . . . . . . . . . . Unused Backups 71 | . 6 . . 1 13 9 . . 2 7 . . . . 11 3 . . 4 . 6 9 Power 7 | . 2 . . . . 2 . . 1 . . . . . . . . . 2 . . . Propulsion 10 | . 3 . . . 4 . . . . 2 . . . . . 1 . . . . . . Utility 11 | . . . . 1 1 1 . . 1 2 . . . . 2 1 . . 2 . . . Weapon 43 | . 1 . . . 8 6 . . . 3 . . . . 9 1 . . . . 6 9 Tool/Special . | . . . . . . . . . . . . . . . . . . . . . . . Average Slot Usage (%) 97 | . 99 100 100 100 98 99 100 100 100 99 100 100 82 97 98 95 100 100 99 97 93 78 Engine 6 | . 14 14 14 14 6 6 7 7 7 7 13 6 6 7 3 4 5 1 . . . . Core 2 | . . . . . 2 . . . . 4 . 5 6 4 7 6 5 5 . . . . Reactor 1 | . . . . . . . . . . . . . . . . . . 3 9 9 9 10 Treads 4 | . 21 14 14 14 5 . 7 7 7 1 6 6 6 6 2 . . . . 2 . 1 Wheel 15 | . 6 14 14 14 20 22 15 15 15 18 13 13 13 8 13 16 17 17 14 13 17 9 Device 21 | . 14 14 14 14 21 22 23 23 23 25 25 19 20 19 25 18 23 23 27 26 21 16 Storage 7 | . 14 14 14 14 12 7 7 7 7 6 6 6 6 6 5 5 5 5 5 4 4 3 Processor 7 | . . . . . . 6 7 7 7 6 6 6 6 6 10 11 11 11 10 17 14 11 Protection 7 | . . . . . 9 8 7 7 7 6 6 13 13 13 7 11 11 11 8 2 6 7 Energy Gun 15 | . 3 14 14 14 14 20 23 23 22 18 19 19 2 15 14 16 9 16 14 11 8 6 Ballistic Gun 1 | . 3 4 . . . . . . . . . . . . . . . . 4 1 3 4 Ballistic Cannon 2 | . 20 9 14 14 3 . . . . . . . . . . . . . . . . . Peak Build Rating 170 | 7 12 12 11 19 31 49 45 46 46 64 66 66 66 74 83 85 87 91 113 128 137 170 Average Rating 64 | 5 9 11 11 11 26 42 45 45 45 57 64 65 52 69 77 82 86 86 105 112 126 133 On Entrance 55 | . 7 12 11 11 10 28 44 45 46 46 64 64 66 65 69 80 81 87 91 113 109 130 Avg Prop Armor Cover (%) 8 | . 10 8 12 12 9 11 10 9 8 8 8 5 7 7 7 . . . 4 8 . 23 Naked Turns 44 | . . . . . . . . . . . . . . . . . . . . . . 44 Heaviest Build 184 | 11 35 35 35 35 111 117 108 108 120 129 129 142 142 141 142 147 144 152 159 159 184 183 Greatest Support 120 | 40 40 20 16 16 30 42 26 26 36 38 20 20 20 22 36 48 42 42 42 48 52 120 Greatest Overweight (x) 18 | . 2 2 2 3 5 10 4 4 4 6 6 7 7 14 14 5 3 3 9 8 8 18 Average Overweight (x) 3 | . . 1 2 2 3 2 4 3 3 3 6 6 6 9 4 3 3 3 3 3 3 2 Largest Inventory Capacity 25 | 8 15 15 15 15 25 25 25 25 25 25 25 25 25 25 25 25 25 25 25 25 25 25 Average Capacity 23 | 6 13 15 15 15 24 25 25 25 25 25 25 25 25 25 25 25 25 25 25 25 25 23 Most Carried 25 | 8 15 15 14 15 25 25 24 25 25 25 25 25 25 25 25 25 25 25 25 25 25 25 Average Carried 22 | 5 13 13 13 14 23 24 23 24 24 24 24 24 25 24 24 24 25 24 24 23 24 22 Final Capacity 25 | 8 15 15 15 15 25 25 25 25 25 25 25 25 25 25 25 25 25 25 25 25 25 5 Final Carried 25 | 8 15 13 14 15 25 23 24 25 25 24 25 25 25 25 25 25 25 25 23 22 25 5 Class Distribution -------------------- 28% | Scavenger-Tank 19% | Scavenger-Gunner 13% | Mutant 13% | Scavenger-Mutant 7% | Gunner 6% | Scavenger-Skirmisher 3% | Commander-Tank 3% | Scavenger-Assassin Dominant Class ---------------- Mutant | -10/Materials Mutant | -10/Mines Mutant | -10/Exiles Mutant | -9/Mines Scavenger-Mutant | -8/Materials Gunner | -7/Factory Scavenger-Gunner | -7/Lower Caves Gunner | -7/Zion Scavenger-Gunner | -6/Proximity Caves Scavenger-Gunner | -6/Factory Scavenger-Gunner | -6/Lower Caves Scavenger-Tank | -6/Lower Caves Mutant | -6/Data Miner Scavenger-Tank | -5/Proximity Caves Scavenger-Tank | -5/Factory Scavenger-Tank | -5/Extension Commander-Tank | -5/Cetus Commander-Tank | -5/Archives Scavenger-Tank | -4/Factory Scavenger-Skirmisher | -3/Research Scavenger-Skirmisher | -3/Testing Scavenger-Skirmisher | -2/Research Resources | -11 -10 -10 -10 -9 -8 -7 -7 -7 -6 -6 -6 -6 -6 -5 -5 -5 -5 -5 -4 -3 -3 -2 ----------- Run | Yrd Mat Min Exi Min Mat Fac Low Zio Pro Fac Low Low Dat Pro Fac Ext Cet Arc Fac Res Tes Res Matter Collected 7820 | 237 612 105 . 96 776 512 31 30 60 372 135 112 . 260 675 465 75 87 498 820 973 889 Remotely . | . . . . . . . . . . . . . . . . . . . . . . . Salvage Created 17719 | 85 537 262 . 228 1729 1466 102 . 269 1444 169 415 . 430 1812 1860 350 194 1017 1101 2046 2203 Parts 710 | 9 39 10 . 11 88 72 2 . 6 38 11 5 . 14 58 51 13 5 40 35 99 104 Haulers Intercepted 9 | . 1 . . . 5 . . . . . . . . . . . . . 3 . . . Recyclers Shooed 15 | . . . . . 1 . . . . . . . . . 8 1 . . . 2 . 3 Parts Field Recycled . | . . . . . . . . . . . . . . . . . . . . . . . Retrieved Matter . | . . . . . . . . . . . . . . . . . . . . . . . Parts Self-Destructed 41 | . . . . . . . . 3 14 . 6 2 . 16 . . . . . . . . Prevented 9 | . . . . . . . 1 . 6 . 2 . . . . . . . . . . . Parts Restored . | . . . . . . . . . . . . . . . . . . . . . . . Kills | -11 -10 -10 -10 -9 -8 -7 -7 -7 -6 -6 -6 -6 -6 -5 -5 -5 -5 -5 -4 -3 -3 -2 ------- Run | Yrd Mat Min Exi Min Mat Fac Low Zio Pro Fac Low Low Dat Pro Fac Ext Cet Arc Fac Res Tes Res Combat Hostiles Destroyed 238 | . 14 8 . 1 33 22 . . 6 24 5 1 . 6 15 20 4 2 11 14 23 29 Melee 1 | . . . . . . . . . . . . . . . . . . . . . . 1 Guns 155 | . 5 8 . 1 17 22 . . 3 22 1 . . 5 12 12 . 2 11 8 10 16 Cannons 28 | . 9 . . . 11 . . . . . . . . . . . . . . 1 5 2 AOE 23 | . . . . . 4 . . . 1 . 4 . . 1 . . 2 . . 2 . 9 Classes Destroyed 21 | 1 7 . . 1 2 2 1 . . 1 . 1 . 2 . . . . 1 . . 2 Worker 27 | . 1 . . . 5 3 . . . 4 . . . . 2 . . . . 3 3 6 Builder 11 | . . . . . 2 . . . . . . . . . 4 . . . . . 1 4 Tunneler 11 | 4 . . . 2 1 . . . . 1 . . . . 1 . . . . 2 . . Hauler 9 | . 1 . . . 5 . . . . . . . . . . . . . 3 . . . Recycler 25 | . 1 1 . 2 . 4 . . . 1 . . . . 7 4 . . . 1 1 3 Minesweeper 1 | . . . . . . . . . . . . 1 . . . . . . . . . . Operator 4 | . 1 . . . . . . . . . . . . . 1 1 . 1 . . . . Drone 1 | . . . . . . . . . . . . . . 1 . . . . . . . . Watcher 15 | . 2 . . . 2 5 . . . 3 . . . . . . 1 . . . 2 . Swarmer 37 | . 3 6 . . 6 3 . . 2 3 4 . . . . . . . 2 . . 8 Grunt 85 | . 11 2 . . 21 8 . . 3 8 . . . . 5 8 . . 5 3 11 . Brawler 5 | . . . . 1 1 1 . . 1 . . . . . 1 . . . . . . . Duelist 2 | . . . . . . . . . . . . . . . . . . . 1 1 . . Sentry 33 | . . . . . 5 5 . . . 4 . . . . 1 9 . 2 1 1 3 2 Specialist 4 | . . . . . . . . . . . . . . 3 . . . . . . . 1 Hunter 17 | . . . . . . 1 . . . 3 . . . 1 2 2 . . . . . 8 Programmer 44 | . . . . . . 4 . . . 5 1 . . 1 6 . . . 2 8 9 8 Behemoth 4 | . . . . . . . . . . 1 . 1 . . . 1 . . . 1 . . Cetus Guard 4 | . . . . . . . . . . . . . . . . . 4 . . . . . Striker 1 | . . . . . . . . . . . . . . . . . . . . . . 1 Executioner 1 | . . . . . . . . . . . . . . . . . . . . . . 1 Decomposer 2 | . . . . . . . . . . . 1 1 . . . . . . . . . . Packrat 1 | . . . . . . . . . . . . 1 . . . . . . . . . . Samaritan 3 | . . . . . . . 1 . . . . 2 . . . . . . . . . . Thug 1 | . . . . . . . . . . . . . . . . . . . 1 . . . Best Kill Streak 13 | 2 4 4 . 1 8 6 . . 3 4 4 1 . 2 5 4 5 3 6 5 8 13 Combat Bots Only 10 | . 3 3 . 1 5 5 . . 3 3 4 1 . 2 2 4 4 2 4 4 7 10 Max Kills in Single Turn 5 | 2 2 1 . 1 2 3 1 . 1 2 2 1 . 1 2 1 3 1 2 2 1 5 Gunslinging 1 | . 1 . . . 1 . . . . 1 . . . . 1 . . . . . . . Exploded 3 | . . . . . 1 . . . 1 . 2 . . 1 . . 2 . . 2 . 3 Melee 1 | . . . . . . . . . . . . . . . . . . . . . . 1 Uniques/NPCs Destroyed . | . . . . . . . . . . . . . . . . . . . . . . . Combat | -11 -10 -10 -10 -9 -8 -7 -7 -7 -6 -6 -6 -6 -6 -5 -5 -5 -5 -5 -4 -3 -3 -2 -------- Run | Yrd Mat Min Exi Min Mat Fac Low Zio Pro Fac Low Low Dat Pro Fac Ext Cet Arc Fac Res Tes Res Hostile Shots Fired 1680 | . 58 53 . . 132 118 . . 25 104 2 9 . 17 85 88 5 3 150 121 199 511 Missed 533 | . 14 16 . . 40 43 . . 11 32 2 1 . 1 20 26 3 1 62 38 53 170 Hits 1147 | . 44 37 . . 92 75 . . 14 72 . 8 . 16 65 62 2 2 88 83 146 341 Melee 12 | . . . . . . . . . . . . . . . 1 . . . . 2 . 9 Projectile 1135 | . 44 37 . . 92 75 . . 14 72 . 8 . 16 64 62 2 2 88 81 146 332 AOE 6 | . . . . . . . . . . 3 . . . . 2 . . . 1 . . . Critical Strikes 56 | . . 1 . . 3 4 . . 1 2 . 1 . . 5 3 2 . 3 8 14 9 Actively Blocked 42 | . . . . . . . . . . . . . . . 4 3 2 . 3 8 14 8 Part Disruptions 2 | . . . . . . . . . . . . . . . . . . . 2 . . . Damage Taken 22284 | . 497 361 . . 1464 1620 . . 203 1136 . 298 . 236 1462 1499 34 83 1499 1775 2773 7344 Core 2920 | . 66 71 . . 154 130 . . 33 186 . . . 12 114 64 . 29 262 256 75 1468 Absorbed by Shields 455 | . . . . . . . . . . . . . . . . 40 32 . . . 383 . Redirected to Shielding 104 | . . . . . 47 . . . . . . . . . 57 . . . . . . . Ignored by Resistances 658 | . . . . . 61 25 . . . . . . . . . . . . . . . 572 Regen/Repaired (Parts) 228 | . 34 . . . . . . . . . . . . . 90 . . . . . . 104 Core Remaining (%) 74 | 100 . . . 45 72 . . . 76 . . . . 76 . . . 79 77 . 74 . Volleys Fired 755 | 6 53 26 . 9 117 48 2 . 11 55 7 24 . 15 76 68 3 8 38 35 78 76 Largest 4 | 2 2 2 . 2 2 3 3 . 3 3 3 3 . 3 3 3 2 3 4 4 4 4 Hottest 368 | 80 100 95 . 95 130 215 215 . 215 240 225 230 . 235 236 251 92 231 278 350 364 368 Shots Fired 1937 | 12 104 52 . 18 219 138 6 . 29 166 11 47 . 37 203 184 6 24 140 117 209 215 Gun 1632 | 12 38 50 . 9 145 138 6 . 27 166 6 47 . 33 202 183 . 24 136 103 141 166 Cannon 259 | . 64 2 . 9 60 . . . . . . . . . . . . . 4 11 68 41 Launcher 34 | . . . . . 6 . . . 2 . 5 . . 4 . . 6 . . 3 . 8 Special 12 | . 2 . . . 8 . . . . . . . . . 1 1 . . . . . . Kinetic 347 | . 80 26 . 9 60 9 . . . . . . . . 22 . . . 39 7 38 57 Thermal 1291 | 12 24 26 . 9 52 60 4 . 18 166 6 47 . 33 179 184 . 24 101 107 115 124 Explosive 14 | . . . . . 6 . . . . . . . . . . . . . . 3 . 5 Electromagnetic 285 | . . . . . 101 69 2 . 11 . 5 . . 4 2 . 6 . . . 56 29 Robot Hit Streak 33 | 4 10 11 . 6 14 14 11 . 11 33 8 27 . 16 23 18 . 8 15 26 15 12 Robot Miss Streak 6 | 3 5 4 . 1 3 3 1 . 4 6 1 3 . 3 2 2 . 1 3 1 5 6 Penetration Max 2 | . . . . . . . . . . . . . . . . . . . 2 . 1 1 Secondary Targets 21 | . 1 1 . . 4 1 . . 1 2 . . . . 2 3 . . 2 2 . 2 Max Gunslinging Chain 1 | . 1 1 . . 1 1 . . 1 1 . . . . 1 1 . . 1 1 . 1 Shots Hit Robots 1349 | 6 62 32 . 12 148 103 4 . 26 132 4 37 . 20 162 147 . 20 89 90 128 127 Core Hits 810 | 4 26 12 . 6 87 90 4 . 17 114 8 18 . 21 102 64 11 10 38 35 52 91 Critical Kills 7 | . . . . . . . . . . . . . . . . . . . . 1 4 2 Critical Parts Destroyed 3 | . . . . . . . . . . . . . . . 1 . . . . . 1 1 Critical Strikes 67 | . 2 . . 2 2 1 . . . 2 . 6 . 1 5 20 . 2 2 5 11 6 Burn 49 | . 1 . . 1 . . . . . 2 . 6 . 1 3 20 . 2 2 4 5 2 Meltdown 2 | . . . . . . . . . . . . . . . . . . . . . 2 . Destroy 6 | . . . . . . . . . . . . . . . 1 . . . . . 3 2 Blast 4 | . 1 . . 1 2 . . . . . . . . . . . . . . . . . Corrupt 3 | . . . . . . 1 . . . . . . . . . . . . . . 1 1 Smash 2 | . . . . . . . . . . . . . . . . . . . . 1 . 1 Impale 1 | . . . . . . . . . . . . . . . 1 . . . . . . . Melee Attacks 96 | . . . . . . 12 . . . 7 2 3 . 2 13 2 . . . 36 8 11 Impact 51 | . . . . . . 12 . . . 7 . . . . . . . . . 13 8 11 Slashing . | . . . . . . . . . . . . . . . . . . . . . . . Piercing 45 | . . . . . . . . . . . 2 3 . 2 13 2 . . . 23 . . Sneak Attacks 7 | . . . . . . . . . . . . . . . 3 . . . . 4 . . Combat Hostiles . | . . . . . . . . . . . . . . . . . . . . . . . Follow-up Attacks . | . . . . . . . . . . . . . . . . . . . . . . . Damage Inflicted 39747 | 77 1087 463 . 250 3442 2438 96 . 519 3415 241 811 . 605 4203 3306 492 495 2547 3818 4292 7150 Guns 29320 | 77 370 447 . 127 1749 2213 96 . 493 3415 63 811 . 517 4008 3306 . 495 2483 2307 3199 3144 Cannons 3760 | . 717 16 . 123 714 . . . . . . . . . . . . . 64 345 1093 688 Explosions 5641 | . . . . . 979 225 . . 26 . 178 . . 88 . . 492 . . 756 . 2897 Melee 1022 | . . . . . . . . . . . . . . . 195 . . . . 410 . 417 Ramming 4 | . . . . . . . . . . . . . . . . . . . . . . 4 Kinetic 4761 | . 889 210 . 123 714 112 . . . . . . . . 266 . . . 754 113 657 923 Thermal 25730 | 77 198 253 . 127 799 1529 56 . 339 3415 63 811 . 517 3742 3306 98 495 1793 2539 2467 3106 Explosive 3017 | . . . . . 506 . . . . . . . . . . . . . . 756 . 1755 Electromagnetic 5213 | . . . . . 1423 797 40 . 180 . 178 . . 88 . . 394 . . . 1168 945 Impact 764 | . . . . . . . . . . . . . . . . . . . . 347 . 417 Slashing . | . . . . . . . . . . . . . . . . . . . . . . . Piercing 258 | . . . . . . . . . . . . . . . 195 . . . . 63 . . Highest Corruption 25 | . . . . . 2 3 3 3 . 2 2 2 2 4 1 . . 10 16 11 25 25 Average Corruption 4 | . . . . . 2 1 3 3 . 1 2 2 2 3 1 . . 10 2 5 16 9 Corruption Purged 1 | . . . . . . . . . . . . . . . 1 . . . . . . . Corruption Blocked . | . . . . . . . . . . . . . . . . . . . . . . . Effects 232 | . . . . . 9 15 2 . . 12 20 17 2 14 . . . 1 8 26 73 33 Message Errors 61 | . . . . . 3 2 . . . 5 10 3 1 4 . . . . 4 8 11 10 Matter Fused 47 | . . . . . 2 4 2 . . 4 3 6 1 3 . . . . . 6 12 4 Heat Flow Errors 26 | . . . . . 1 2 . . . . 2 . . 2 . . . . 1 4 11 3 Energy Discharges 26 | . . . . . 2 1 . . . 1 3 1 . 3 . . . . . 1 11 3 Parts Rejected 3 | . . . . . . 1 . . . . . . . . . . . . . . 1 1 Parts Fused 2 | . . . . . . . . . . . . 1 . . . . . . . . 1 . Data Loss (minor) 25 | . . . . . . 2 . . . 1 1 3 . . . . . . 2 3 10 3 Data Loss (major) 6 | . . . . . . . . . . . 1 1 . 1 . . . . . 2 . 1 Misfires 7 | . . . . . . 2 . . . 1 . 1 . . . . . . . 2 1 . Alerts 5 | . . . . . . . . . . . . 1 . 1 . . . 1 1 . 1 . Misdirections 6 | . . . . . . . . . . . . . . . . . . . . . 1 5 Weapon Failures 18 | . . . . . 1 1 . . . . . . . . . . . . . . 13 3 Overload Shots . | . . . . . . . . . . . . . . . . . . . . . . . Overflow Damage 586 | . 3 . . . 46 141 . . . . 4 . . . 65 . . . . 151 41 135 Projectiles 117 | . 3 . . . 1 . . . . . . . . . . . . . . 66 41 6 Explosions 300 | . . . . . 45 141 . . . . 4 . . . . . . . . . . 110 Melee 169 | . . . . . . . . . . . . . . . 65 . . . . 85 . 19 Knockbacks 13 | . 4 . . . 4 . . . . . . . . . . . . . . 1 . 4 Impact 5 | . . . . . . . . . . . . . . . . . . . . 1 . 4 Kinetic 8 | . 4 . . . 4 . . . . . . . . . . . . . . . . . Secondary . | . . . . . . . . . . . . . . . . . . . . . . . Self-Inflicted Damage 690 | . . . . . 194 297 . . . . . . . . . . 16 . . . . 183 Shots 20 | . . . . . 7 5 . . . . . . . . . . 1 . . . . 7 Rammed 5 | . . . . . . . . . . . . . . . . . . . . . . 5 Targets Rammed 5 | . . . . . . . . . . . . . . . . . . . . . . 5 Kicked . | . . . . . . . . . . . . . . . . . . . . . . . Crushed . | . . . . . . . . . . . . . . . . . . . . . . . Highest Temperature 687 | 72 72 189 . 54 60 186 . . 176 363 222 126 . 161 66 482 . . 173 269 414 687 Average Temperature 73 | 30 26 57 . 21 13 48 . . 94 86 58 54 . 53 19 126 . . 37 87 99 132 Received Heat Transfer 2792 | . 234 108 . . 693 186 . . 66 180 . 24 . 9 225 306 . 9 126 123 401 102 Effects 11 | . . . . . . . . . . . . . . . . 5 . . . . 1 5 Shutdowns 3 | . . . . . . . . . . . . . . . . 1 . . . . . 2 Energy Bleed 4 | . . . . . . . . . . . . . . . . 2 . . . . 1 1 Interference 2 | . . . . . . . . . . . . . . . . 2 . . . . . . Matter Decay 1 | . . . . . . . . . . . . . . . . . . . . . . 1 Short Circuit 1 | . . . . . . . . . . . . . . . . . . . . . . 1 Siege Activations . | . . . . . . . . . . . . . . . . . . . . . . . Martial Activations . | . . . . . . . . . . . . . . . . . . . . . . . Shielding Activations . | . . . . . . . . . . . . . . . . . . . . . . . Robots Disrupted 1 | . . . . . 1 . . . . . . . . . . . . . . . . . Combat Hostiles 1 | . . . . . 1 . . . . . . . . . . . . . . . . . Robots Corrupted 10 | . . . . . 1 . . . . . . . . . . . 2 . . 1 5 1 Combat Hostiles 9 | . . . . . 1 . . . . . . . . . . . 2 . . . 5 1 Parts Fried 34 | . . . . . 6 10 . . . . . . . . . . 1 . . 1 14 2 Impact Corruptions 5 | . . . . . . . . . . . . . . . . . . . . 3 . 2 Robots Melted 23 | . . . . . . . . . 2 2 . 1 . . 4 8 . . . 3 3 . Combat Hostiles 22 | . . . . . . . . . 2 2 . 1 . . 3 8 . . . 3 3 . Parts Melted 168 | . . . . . . 9 . . 3 29 . 5 . 6 26 33 . 4 10 23 15 5 Heat Transferred 47911 | 175 556 629 . 370 1277 2975 125 . 775 7225 125 2370 . 1225 7873 8276 50 1027 2812 3404 3034 3608 Parts Sabotaged . | . . . . . . . . . . . . . . . . . . . . . . . Parts Stolen . | . . . . . . . . . . . . . . . . . . . . . . . Parts Stripped . | . . . . . . . . . . . . . . . . . . . . . . . Power Chain Reactions 14 | . . . . . 7 1 . . . . 1 . . . . . 1 . . . . 4 Alert | -11 -10 -10 -10 -9 -8 -7 -7 -7 -6 -6 -6 -6 -6 -5 -5 -5 -5 -5 -4 -3 -3 -2 ------- Run | Yrd Mat Min Exi Min Mat Fac Low Zio Pro Fac Low Low Dat Pro Fac Ext Cet Arc Fac Res Tes Res Maximum Alert Level 3 | . . . . . 2 2 . . . 1 . . . . 3 2 2 1 3 2 1 3 Low Security (%) 60 | 100 100 100 . 100 76 86 . . . 78 . . . . 60 . . 83 21 . 81 56 Level 1 23 | . . . . . 15 9 . . . 21 . . . . 16 50 70 16 26 76 18 24 Level 2 10 | . . . . . 8 3 . . . . . . . . 9 49 30 . 2 23 . 11 Level 3 4 | . . . . . . . . . . . . . . . 13 . . . 50 . . 7 Level 4 . | . . . . . . . . . . . . . . . . . . . . . . . Level 5 . | . . . . . . . . . . . . . . . . . . . . . . . High Security . | . . . . . . . . . . . . . . . . . . . . . . . Max Security . | . . . . . . . . . . . . . . . . . . . . . . . Peak Influence 886 | 10 116 108 . 81 519 431 . . . 367 . . . . 825 556 447 222 886 454 394 727 Initial 450 | . . 38 . . . 229 . . . . . . . . 150 385 288 112 32 450 189 229 Average 213 | 1 42 31 . 32 132 138 . . . 118 . . . . 261 419 364 152 516 370 151 262 Influence Increases 11446 | 20 498 253 . 101 1180 922 5 . 325 906 135 40 . 110 1606 877 204 200 1428 498 822 1316 Destroy 0b10 Robot/C 5860 | . 280 200 . 60 680 440 . . 220 540 100 20 . 100 620 580 80 80 500 280 460 620 Destroy 0b10 Robot/NC 580 | 20 30 5 . 20 75 60 5 . . 45 . 10 . 10 90 45 5 5 15 30 35 75 Destroy Leader 1178 | . 66 40 . 10 154 140 . . 20 166 20 10 . . 166 56 . . 86 70 54 120 Allied During Kill 1308 | . . 8 . 11 6 . . . 85 50 . . . . 269 130 82 85 563 . . 19 Successful Hack 114 | . 15 . . . 24 3 . . . 17 . . . . 29 . . . . 24 . 2 Select Force Hacks 30 | . 30 . . . . . . . . . . . . . . . . . . . . . Disable Machine 705 | . 45 . . . 45 165 . . . 45 . . . . 135 15 15 30 60 30 90 30 Destroy Structure 876 | . 2 . . . 61 54 . . . 13 . . . . 132 36 22 . 114 64 78 300 Advance Influence 150 | . . . . . . . . . . . . . . . 150 . . . . . . . Partial Spotted 45 | . . . . . 15 . . . . . . . . . . . . . 15 . 15 . Lose Combat Pursuer 600 | . 30 . . . 120 60 . . . 30 15 . . . 15 15 . . 75 . 90 150 Influence Decreases 10737 | 20 399 334 18 101 675 996 291 145 325 545 496 40 . 110 818 1150 437 390 662 1020 749 1016 Entered New Map 2391 | . . 61 18 . . 276 161 145 . . 135 . . . . 403 227 170 60 408 147 180 Time Decay 6813 | 20 389 253 . 101 542 620 130 . 305 445 361 40 . 100 658 607 190 150 372 522 502 506 Lost Part 880 | . 10 20 . . 70 100 . . . 40 . . . 10 80 30 . 10 30 90 100 290 Lost Ally 615 | . . . . . 25 . . . 20 60 . . . . 80 110 20 60 200 . . 40 Purge Threat 38 | . . . . . 38 . . . . . . . . . . . . . . . . . Squads Dispatched 56 | . 3 . . . 5 8 . . . 12 . . . . 8 1 . . 3 3 5 8 Investigation 9 | . 2 . . . 1 . . . . 3 . . . . 1 . . . . . 1 1 Extermination 24 | . . . . . . 4 . . . 4 . . . . 5 . . . 1 3 4 3 Reinforcement 17 | . 1 . . . 4 2 . . . 1 . . . . 2 1 . . 2 . . 4 Assault . | . . . . . . . . . . . . . . . . . . . . . . . Garrison 6 | . . . . . . 2 . . . 4 . . . . . . . . . . . . Intercept . | . . . . . . . . . . . . . . . . . . . . . . . Searches Triggered . | . . . . . . . . . . . . . . . . . . . . . . . Construction Impeded 6 | . . . . . 2 . . . . 1 . . . . 2 . . . . . . 1 Haulers Reinforced 1 | . . . . . . . . . . . . . . . . . . . 1 . . . Active Scanning Responses . | . . . . . . . . . . . . . . . . . . . . . . . Cargo Convoy Interrupts 3 | . . . . . . 1 . . . . . . . . . . . . 1 . . 1 Stealth | -11 -10 -10 -10 -9 -8 -7 -7 -7 -6 -6 -6 -6 -6 -5 -5 -5 -5 -5 -4 -3 -3 -2 --------- Run | Yrd Mat Min Exi Min Mat Fac Low Zio Pro Fac Low Low Dat Pro Fac Ext Cet Arc Fac Res Tes Res Distress Signals 14 | . 2 . . . 4 . . . . . . . . . . 1 1 . . 1 4 1 Communications Jammed 38 | . . . . . . . . . . . . . . . . . . . 38 . . . Distress Signals 38 | . . . . . . . . . . . . . . . . . . . 38 . . . Times Spotted 421 | . 24 10 . 3 54 32 . . 11 41 3 1 . 6 38 33 4 6 39 16 36 64 Peak Tracking Total 12 | . 4 3 . 3 6 3 . . 4 4 2 1 . 1 4 6 5 2 12 5 8 12 Tactical Retreats 31 | . 2 . . . 7 4 . . . 2 1 . . . 1 1 . . 3 . 3 7 ECM-based Alert Blocks 3 | . . . . . . . . . . . . . . . . . . . . . . 3 Traps | -11 -10 -10 -10 -9 -8 -7 -7 -7 -6 -6 -6 -6 -6 -5 -5 -5 -5 -5 -4 -3 -3 -2 ------- Run | Yrd Mat Min Exi Min Mat Fac Low Zio Pro Fac Low Low Dat Pro Fac Ext Cet Arc Fac Res Tes Res Traps Triggered 13 | . . . . . 2 3 . . . 1 . 1 . . 2 2 . . . 1 1 . Indirectly . | . . . . . . . . . . . . . . . . . . . . . . . Trap Hack Attempts . | . . . . . . . . . . . . . . . . . . . . . . . Triggered . | . . . . . . . . . . . . . . . . . . . . . . . Disarmed . | . . . . . . . . . . . . . . . . . . . . . . . Reprogrammed . | . . . . . . . . . . . . . . . . . . . . . . . Reused . | . . . . . . . . . . . . . . . . . . . . . . . Traps Extracted . | . . . . . . . . . . . . . . . . . . . . . . . Installed . | . . . . . . . . . . . . . . . . . . . . . . . Triggered . | . . . . . . . . . . . . . . . . . . . . . . . Machines | -11 -10 -10 -10 -9 -8 -7 -7 -7 -6 -6 -6 -6 -6 -5 -5 -5 -5 -5 -4 -3 -3 -2 ---------- Run | Yrd Mat Min Exi Min Mat Fac Low Zio Pro Fac Low Low Dat Pro Fac Ext Cet Arc Fac Res Tes Res Machines Disabled 49 | . 3 . . . 3 11 . . . 3 . . . . 9 1 1 2 4 2 8 2 Max in Single Turn 8 | . 1 . . . 1 8 . . . 1 . . . . 1 1 1 1 1 1 2 1 Garrison Access 1 | . . . . . 1 . . . . . . . . . . . . . . . . . Machines Repaired . | . . . . . . . . . . . . . . . . . . . . . . . Machines Dismantled 5 | . . . . . . . . . . . . . . . 3 1 1 . . . . . Machines Sabotaged . | . . . . . . . . . . . . . . . . . . . . . . . Overloaded Fab Kills . | . . . . . . . . . . . . . . . . . . . . . . . Hacking | -11 -10 -10 -10 -9 -8 -7 -7 -7 -6 -6 -6 -6 -6 -5 -5 -5 -5 -5 -4 -3 -3 -2 --------- Run | Yrd Mat Min Exi Min Mat Fac Low Zio Pro Fac Low Low Dat Pro Fac Ext Cet Arc Fac Res Tes Res Machines Accessed 52 | . 7 . 1 . 10 9 . 1 . 7 1 1 4 . 4 . 1 . . 2 3 1 Terminals 18 | . 5 . . . 7 5 . . . . . . . . . . 1 . . . . . Fabricators 5 | . . . . . . 1 . . . 1 . . . . 2 . . . . 1 . . Repair Stations 9 | . 1 . . . 1 2 . . . 1 . . . . 1 . . . . 1 1 1 Recycling Units 4 | . 1 . . . . 1 . . . 1 . . . . 1 . . . . . . . Scanalyzers 5 | . . . . . 1 . . . . 2 . . . . . . . . . . 2 . Garrison Access 3 | . . . . . 1 . . . . 2 . . . . . . . . . . . . Total Hacks 149 | . 22 . 2 . 35 22 . 5 . 12 1 1 22 . 9 . 1 . . 2 7 8 Successful 83 | . 11 . 2 . 14 8 . 5 . 4 1 1 22 . 6 . . . . 2 2 5 Failed 66 | . 11 . . . 21 14 . . . 8 . . . . 3 . 1 . . . 5 3 Catastrophic 13 | . 2 . . . 2 4 . . . 1 . . . . 1 . . . . . 2 1 Database Lockouts . | . . . . . . . . . . . . . . . . . . . . . . . Manual 141 | . 14 . . . 15 6 . . . 19 . . . 1 13 18 1 . 5 28 17 4 Terminals 57 | . 18 . . . 26 12 . . . . . . . . . . 1 . . . . . Fabricators 10 | . . . . . . 2 . . . 2 . . . . 5 . . . . 1 . . Repair Stations 27 | . 2 . . . 3 5 . . . 2 . . . . 2 . . . . 1 4 8 Recycling Units 9 | . 2 . . . . 3 . . . 2 . . . . 2 . . . . . . . Scanalyzers 11 | . . . . . 5 . . . . 3 . . . . . . . . . . 3 . Garrison Access 4 | . . . . . 1 . . . . 3 . . . . . . . . . . . . Terminal Hacks 43 | . 4 . 2 . 5 3 . 5 . . 1 1 22 . . . . . . . . . Record 8 | . . . 2 . . 1 . . . . . . 5 . . . . . . . . . Part Schematic 16 | . . . . . . . . 5 . . . . 11 . . . . . . . . . Robot Schematic 3 | . . . . . . . . . . . . . 3 . . . . . . . . . Prototype ID Bank 5 | . 1 . . . 1 . . . . . . . 3 . . . . . . . . . Open Door 2 | . . . . . . . . . . . 1 1 . . . . . . . . . . Branch Access Points 2 | . . . . . 1 1 . . . . . . . . . . . . . . . . Terminal Index 1 | . 1 . . . . . . . . . . . . . . . . . . . . . Alert Level 1 | . . . . . . 1 . . . . . . . . . . . . . . . . Unreport Threat 1 | . . . . . 1 . . . . . . . . . . . . . . . . . Locate Traps 3 | . 2 . . . 1 . . . . . . . . . . . . . . . . . Hauler Manifests 1 | . . . . . 1 . . . . . . . . . . . . . . . . . Fabricator Hacks 6 | . . . . . . 1 . . . 1 . . . . 3 . . . . 1 . . Network Status 4 | . . . . . . 1 . . . 1 . . . . 1 . . . . 1 . . Load Schematic 1 | . . . . . . . . . . . . . . . 1 . . . . . . . Build 1 | . . . . . . . . . . . . . . . 1 . . . . . . . Repair Station Hacks 11 | . 2 . . . 1 1 . . . . . . . . 2 . . . . . . 5 Scan Component 7 | . 1 . . . 1 1 . . . . . . . . 1 . . . . . . 3 Repair 4 | . 1 . . . . . . . . . . . . . 1 . . . . . . 2 Recycling Unit Hacks 2 | . 1 . . . . 1 . . . . . . . . . . . . . . . . Report Inventory 2 | . 1 . . . . 1 . . . . . . . . . . . . . . . . Scanalyzer 6 | . . . . . 4 . . . . 1 . . . . . . . . . . 1 . Insert Component 1 | . . . . . 1 . . . . . . . . . . . . . . . . . Analyze 2 | . . . . . 2 . . . . . . . . . . . . . . . . . Retrieve Study 3 | . . . . . 1 . . . . 1 . . . . . . . . . . 1 . Garrison Access Hacks 1 | . . . . . 1 . . . . . . . . . . . . . . . . . Seal Access 1 | . . . . . 1 . . . . . . . . . . . . . . . . . Unauthorized Hacks 14 | . 4 . . . 3 2 . . . 2 . . . . 1 . . . . 1 1 . Terminals 6 | . 3 . . . 3 . . . . . . . . . . . . . . . . . Botnet 4 | . 2 . . . 2 . . . . . . . . . . . . . . . . . Operators 2 | . 1 . . . 1 . . . . . . . . . . . . . . . . . Fabricators 1 | . . . . . . . . . . 1 . . . . . . . . . . . . Haulers 1 | . . . . . . . . . . 1 . . . . . . . . . . . . Repair Stations 2 | . . . . . . . . . . . . . . . . . . . . 1 1 . Mechanics 2 | . . . . . . . . . . . . . . . . . . . . 1 1 . Recycling Units 5 | . 1 . . . . 2 . . . 1 . . . . 1 . . . . . . . Reject 1 | . . . . . . 1 . . . . . . . . . . . . . . . . Recyclers 3 | . . . . . . 1 . . . 1 . . . . 1 . . . . . . . Tunnel 1 | . 1 . . . . . . . . . . . . . . . . . . . . . Scanalyzers . | . . . . . . . . . . . . . . . . . . . . . . . Garrison Access . | . . . . . . . . . . . . . . . . . . . . . . . Data Cores Recovered 2 | . 1 . . . . . . . . . . . . . . 1 . . . . . . Used . | . . . . . . . . . . . . . . . . . . . . . . . Hacking Detections 37 | . 6 . . . 9 8 . . . 5 . . . . 3 . 1 . . 2 2 1 Full Trace Events 4 | . 1 . . . 1 . . . . 1 . . . . 1 . . . . . . . Feedback Events . | . . . . . . . . . . . . . . . . . . . . . . . Feedback Blocked . | . . . . . . . . . . . . . . . . . . . . . . . Robot Schematics Acquired 15 | . . . . . . . . 3 . 5 . . 3 . . 4 . . . . . . Robots Built . | . . . . . . . . . . . . . . . . . . . . . . . Authchips . | . . . . . . . . . . . . . . . . . . . . . . . Time . | . . . . . . . . . . . . . . . . . . . . . . . Total Robot Build Rating . | . . . . . . . . . . . . . . . . . . . . . . . Part Schematics Acquired 121 | . . . . . . . . 19 . . . . 11 . 11 27 . . . 25 28 . Parts Built . | . . . . . . . . . . . . . . . . . . . . . . . Authchips . | . . . . . . . . . . . . . . . . . . . . . . . Time 152 | . . . . . . . . . . . . . . . 152 . . . . . . . Total Part Build Rating . | . . . . . . . . . . . . . . . . . . . . . . . Part Studies Acquired 3 | . . . . . 1 . . . . 1 . . . . . . . . . . 1 . Parts Repaired 4 | . 1 . . . . . . . . . . . . . 1 . . . . . . 2 Time 148 | . 26 . . . . . . . . . . . . . 16 . . . . . . 106 Parts Recycled . | . . . . . . . . . . . . . . . . . . . . . . . Recycled Matter . | . . . . . . . . . . . . . . . . . . . . . . . Retrieved Matter . | . . . . . . . . . . . . . . . . . . . . . . . Retrieved Components . | . . . . . . . . . . . . . . . . . . . . . . . Parts Scanalyzed 1 | . . . . . 1 . . . . . . . . . . . . . . . . . Part Schematics Acquired . | . . . . . . . . . . . . . . . . . . . . . . . Parts Damaged 1 | . . . . . 1 . . . . . . . . . . . . . . . . . Bothacking | -11 -10 -10 -10 -9 -8 -7 -7 -7 -6 -6 -6 -6 -6 -5 -5 -5 -5 -5 -4 -3 -3 -2 ------------ Run | Yrd Mat Min Exi Min Mat Fac Low Zio Pro Fac Low Low Dat Pro Fac Ext Cet Arc Fac Res Tes Res Used RIF Installer . | . . . . . . . . . . . . . . . . . . . . . . . Robots Hacked . | . . . . . . . . . . . . . . . . . . . . . . . Non-combat . | . . . . . . . . . . . . . . . . . . . . . . . Combat . | . . . . . . . . . . . . . . . . . . . . . . . Robot Hacks Applied . | . . . . . . . . . . . . . . . . . . . . . . . Relay Couplers Released . | . . . . . . . . . . . . . . . . . . . . . . . Fabnet Peak Effective % . | . . . . . . . . . . . . . . . . . . . . . . . Robots Rewired 13 | . . . . . . . . . . . . . . . . 13 . . . . . . Allies Hacked . | . . . . . . . . . . . . . . . . . . . . . . . Hacks Repelled . | . . . . . . . . . . . . . . . . . . . . . . . Allies | -11 -10 -10 -10 -9 -8 -7 -7 -7 -6 -6 -6 -6 -6 -5 -5 -5 -5 -5 -4 -3 -3 -2 -------- Run | Yrd Mat Min Exi Min Mat Fac Low Zio Pro Fac Low Low Dat Pro Fac Ext Cet Arc Fac Res Tes Res Total Allies 41 | . . 3 . . . . . 4 . 4 . . . . 5 17 5 . . . . 3 Largest Group 15 | . . 3 3 3 3 . . 4 4 4 . . . . 5 11 15 15 11 . . 3 Highest-Rated Group 880 | . . 40 40 37 37 . . 157 157 117 . . . . 345 428 880 880 640 . . 243 Highest-Rated Ally 159 | . . 16 16 16 16 . . 41 41 41 . . . . 96 159 159 159 96 . . 81 Zionite Dispatches 4 | . . . . . . . . . . 1 . . . . 1 1 . . . . . 1 Recon 1 | . . . . . . . . . . . . . . . . 1 . . . . . . Fire 1 | . . . . . . . . . . 1 . . . . . . . . . . . . Hacker 2 | . . . . . . . . . . . . . . . 1 . . . . . . 1 Total Orders 1 | . . . . . . . . . . . . . . . . 1 . . . . . . EXPLORE 1 | . . . . . . . . . . . . . . . . 1 . . . . . . Ally Attacks 411 | . . 14 . 12 14 . . . 36 23 . . . . 80 118 5 24 63 . . 22 Total Damage 11280 | . . 175 . 144 104 . . . 721 423 . . . . 3453 2118 41 669 2488 . . 944 Kills 68 | . . 2 . 2 1 . . . 5 3 . . . . 20 14 . 2 14 . . 5 Allies Corrupted 2 | . . . . . . . . . . . . . . . 1 . . . 1 . . . Allies Melted . | . . . . . . . . . . . . . . . . . . . . . . . Intel | -11 -10 -10 -10 -9 -8 -7 -7 -7 -6 -6 -6 -6 -6 -5 -5 -5 -5 -5 -4 -3 -3 -2 ------- Run | Yrd Mat Min Exi Min Mat Fac Low Zio Pro Fac Low Low Dat Pro Fac Ext Cet Arc Fac Res Tes Res Active Infowar (turns) 24569 | 26 1668 864 238 258 1848 1483 269 1749 706 1343 1922 889 149 1091 2470 1978 380 312 891 1450 1342 1243 Sensors 1238 | . . . . 2 . . . . . . . . . . . . . . . . 410 826 IFF 8918 | . . . . . . . . . . 492 1922 889 149 1091 2047 411 . . 357 1140 420 . Terrain 2849 | . . . . . . . . . . . . . . . . . . . . 1288 827 734 Seismic 9958 | 26 1668 864 238 256 1848 1483 269 1749 706 851 . . . . . . . . . . . . Machine Analysis 10051 | . . . . . . . . . . . . . . . 2469 1978 380 312 891 1450 1342 1229 Jamming 1038 | . . . . . . . . . . . . . . . . . . . 754 284 . . ECM 628 | . . . . . . . . . . . . . . . . . . . . . . 628 Robot Analysis Total . | . . . . . . . . . . . . . . . . . . . . . . . Derelict Logs Recovered 9 | . . 1 . 1 . . 1 1 1 . 1 2 . 1 . . . . . . . . Drone Launches 2 | . . . . . . . . . . . . . . . . 2 . . . . . . Drone Recoveries . | . . . . . . . . . . . . . . . . . . . . . . . Zionite Intel Received 19 | . . . . . . . . . . 3 . . . . 2 4 . . 1 5 4 . Branch Access 2 | . . . . . . . . . . 1 . . . . . . . . 1 . . . Emergency Access 2 | . . . . . . . . . . . . . . . 1 . . . . 1 . . Component Stockpiles 1 | . . . . . . . . . . . . . . . . 1 . . . . . . Prototype Stockpiles 1 | . . . . . . . . . . . . . . . . . . . . . 1 . Component Schematics 4 | . . . . . . . . . . . . . . . . 1 . . . 1 2 . Prototype Schematics 3 | . . . . . . . . . . . . . . . 1 1 . . . 1 . . Unaware Schematics 2 | . . . . . . . . . . 1 . . . . . 1 . . . . . . Unaware Analyses 1 | . . . . . . . . . . . . . . . . . . . . 1 . . Active Terminals 1 | . . . . . . . . . . . . . . . . . . . . . 1 . Depthwide Sectors/0 2 | . . . . . . . . . . 1 . . . . . . . . . 1 . . Exploration | -11 -10 -10 -10 -9 -8 -7 -7 -7 -6 -6 -6 -6 -6 -5 -5 -5 -5 -5 -4 -3 -3 -2 ------------- Run | Yrd Mat Min Exi Min Mat Fac Low Zio Pro Fac Low Low Dat Pro Fac Ext Cet Arc Fac Res Tes Res Turns Passed 26529 | 155 1668 864 238 260 2204 2097 269 1749 706 1906 1941 965 150 1173 2470 1978 380 312 891 1450 1342 1361 Spaces Moved 14684 | 73 818 423 180 165 1083 1443 179 1217 437 1157 1190 542 90 484 1314 1054 138 192 497 756 658 594 Core 148 | 1 . . . . . . . . . . . . . . . . . . . . . 147 Treads 852 | 72 516 192 . . . . . . . . . . . . . . . . . . . 72 Legs . | . . . . . . . . . . . . . . . . . . . . . . . Wheels 13680 | . 302 231 180 165 1083 1443 179 1217 437 1157 1190 542 90 484 1314 1054 138 192 497 756 658 371 Hover . | . . . . . . . . . . . . . . . . . . . . . . . Flight 4 | . . . . . . . . . . . . . . . . . . . . . . 4 Fastest Speed 37 | 50 115 130 130 110 95 110 145 130 125 121 160 160 160 160 115 125 135 135 135 107 107 37 Average Speed 142 | 158 152 179 130 124 135 120 145 142 144 129 160 160 160 219 143 133 135 135 137 134 125 127 Slowest Speed 340 | 160 240 240 130 130 155 220 145 145 145 160 160 175 175 280 280 160 135 135 235 220 190 340 Overloaded Moves . | . . . . . . . . . . . . . . . . . . . . . . . Propulsion Burnouts . | . . . . . . . . . . . . . . . . . . . . . . . Robots Hopped . | . . . . . . . . . . . . . . . . . . . . . . . Potential Cave-ins . | . . . . . . . . . . . . . . . . . . . . . . . Cave-ins Triggered . | . . . . . . . . . . . . . . . . . . . . . . . Exploration Rate (%) 54 | 4 96 72 50 39 75 33 36 89 60 34 96 67 68 54 28 92 69 88 9 26 47 22 Regions Visited 22 Branch Regions 14 Pre-discovered Areas 17 | . 1 . 1 . . . . 2 . 6 1 1 1 . . . . . . 4 . . Known Exits Taken 6 | . . . . 1 . 1 . . . 1 . . . . 1 . . . . 1 1 . Unknown Exits Taken 16 | 1 1 1 1 . 1 . 1 1 1 . 1 1 1 1 . 1 1 1 1 . . . Scrap Searched 17 | . . 1 . . . . 1 4 . . 8 2 . 1 . . . . . . . . Spaces Dug 84 | . 1 . . . 8 10 . . . 6 1 1 . 2 6 1 . . 2 21 16 9 Terrain Destroyed 342 | . 1 . . . 57 52 . . . 6 9 1 . 2 6 1 16 . 14 31 42 104 Melee 54 | . . . . . . 10 . . . 6 1 1 . 2 6 1 . . . 21 6 . Projectile 91 | . 1 . . . 10 . . . . . . . . . . . . . 14 3 36 27 AOE 196 | . . . . . 47 42 . . . . 8 . . . . . 16 . . 7 . 76 Terrain Rammed . | . . . . . . . . . . . . . . . . . . . . . . . Walls Destroyed . | . . . . . . . . . . . . . . . . . . . . . . . Machines Disabled . | . . . . . . . . . . . . . . . . . . . . . . . Actions | -11 -10 -10 -10 -9 -8 -7 -7 -7 -6 -6 -6 -6 -6 -5 -5 -5 -5 -5 -4 -3 -3 -2 --------- Run | Yrd Mat Min Exi Min Mat Fac Low Zio Pro Fac Low Low Dat Pro Fac Ext Cet Arc Fac Res Tes Res Total 18548 | 97 1134 473 183 203 1595 1681 183 1237 488 1441 1213 590 96 554 1668 1496 317 230 626 1034 1001 1008 Wait 1701 | 4 216 22 3 18 264 71 . 15 26 140 3 13 . 24 117 156 156 16 39 92 105 201 Move 14662 | 72 817 422 179 164 1082 1442 178 1216 436 1156 1189 541 89 483 1313 1053 137 191 496 755 657 594 Hop . | . . . . . . . . . . . . . . . . . . . . . . . Pick Up 223 | 8 15 . . 1 42 24 1 1 4 17 2 1 . 1 28 9 3 3 8 11 33 11 Fast Attach 132 | 7 3 . . 3 10 13 . . 1 4 1 . 3 5 10 6 1 . 7 10 20 28 Attach 90 | . 1 2 . . 9 9 1 . . 4 . 2 . 3 9 4 . 1 4 9 9 23 Detach 13 | . . . . 1 . 1 . . . . . . . 2 . . . . 1 . 2 6 Swap 374 | . 14 1 1 2 29 27 1 3 4 30 6 5 1 12 40 38 4 6 19 58 42 31 Drop 315 | . 15 . . 5 37 34 . 2 6 28 3 1 3 7 35 27 4 5 14 20 47 22 Fire 755 | 6 53 26 . 9 117 48 2 . 11 55 7 24 . 15 76 68 3 8 38 35 78 76 Melee 96 | . . . . . . 12 . . . 7 2 3 . 2 13 2 . . . 36 8 11 Ram . | . . . . . . . . . . . . . . . . . . . . . . . Kick . | . . . . . . . . . . . . . . . . . . . . . . . Crush 5 | . . . . . . . . . . . . . . . . . . . . . . 5 Escape Stasis 24 | . . . . . . . . . . . . . . . . 16 . . . 8 . . Rewire 114 | . . . . . 5 . . . . . . . . . . 109 . . . . . . Trap . | . . . . . . . . . . . . . . . . . . . . . . . Miscellaneous 44 | . . . . . . . . . . . . . . . 27 8 9 . . . . . Route ------- -11/Scrapyard -10/Materials (discovered 4 exits: [*Mat x3] / [*Min]) -10/Mines (discovered 3 exits: [*Mat] / *Exi / [*Sub]) -10/Exiles -9/Mines (discovered 2 exits: *Mat x2) -8/Materials (discovered 4 exits: *Fac x3 / Sto) -7/Factory (discovered 2 exits: *Low x2) -7/Lower Caves -7/Zion -6/Proximity Caves -6/Factory (discovered 3 exits: *Fac / *Low x2) -6/Lower Caves -6/Lower Caves (discovered 2 exits: *Fac / *Dat) -6/Data Miner -5/Proximity Caves -5/Factory (discovered 3 exits: *Upp / *Ext x2) -5/Extension (discovered 3 exits: *Fac x2 / *Cet) -5/Cetus -5/Archives (discovered 3 exits: *Fac / [*Hub x2]) -4/Factory (discovered 3 exits: *Res / Upp x2) -3/Research -3/Testing -2/Research History --------- Turn | Location | Event 28 | -11/Scrapyard | Discovered new exit (range 16) 156 | -11/Scrapyard | Entered Materials 311 | -10/Materials | Build established: Mutant 423 | -10/Materials | Discovered new exit (range 4) 753 | -10/Materials | Discovered new exit (range 8) 762 | -10/Materials | Discovered new exit (range 16) 1349 | -10/Materials | Repaired Lgt. Cannon 1375 | -10/Materials | Discovered new exit (range 8) 1824 | -10/Materials | Entered Mines 2092 | -10/Mines | Core integrity fell below 50% 2162 | -10/Mines | Learned location of 1 exit from Materials 2166 | -10/Mines | Discovered new exit (range 5) 2274 | -10/Mines | Discovered new exit (range 4) 2430 | -10/Mines | Assisted by bots powering up and referring to "LRC-V3" 2676 | -10/Mines | Deemed a non-threat by the Exiles lab entrance 2678 | -10/Mines | Discovered new exit (range 5) 2688 | -10/Mines | Entered Exiles 2688 | -10/Exiles | Accompanied by 3 allies 2720 | -10/Exiles | Met 8R-AWN 2742 | -10/Exiles | Met EX-HEX 2794 | -10/Exiles | Met EX-DEC 2800 | -10/Exiles | Learned location of Zion (-7) 2824 | -10/Exiles | Met EX-BIN 2912 | -10/Exiles | Discovered new exit (range 10) 2926 | -10/Exiles | Entered Mines 2926 | -9/Mines | Accompanied by 3 allies 2968 | -9/Mines | Identified exit to Materials 2992 | -9/Mines | Found a damaged Exp. Sensor Array with a note attached 2996 | -9/Mines | Found Prototype Device 2996 | -9/Mines | Identified Exp. Sensor Array 3060 | -9/Mines | Discovered exit to Materials (range 6) 3186 | -9/Mines | Entered Materials 3186 | -8/Materials | Accompanied by 3 allies 3186 | -8/Materials | Evolved 4 slots: Propulsion x1, Utility x3 3187 | -8/Materials | Identified exit to Storage 3457 | -8/Materials | Build established: Scavenger-Mutant 3895 | -8/Materials | Lost 3 parts (2n1w) 4150 | -8/Materials | Discovered new exit (range 3) 4818 | -8/Materials | Discovered new exit (range 4) 5021 | -8/Materials | Discovered new exit (range 16) 5390 | -8/Materials | Entered Factory 5390 | -7/Factory | Evolved 2 slots: Utility x1, Weapon x1 6056 | -7/Factory | Build established: Gunner 6110 | -7/Factory | Cargo convoy interrupted 6401 | -7/Factory | Identified exit to Lower Caves 6535 | -7/Factory | Lost 3 parts (1n1u1w) 7013 | -7/Factory | Build established: Scavenger-Mutant 7293 | -7/Factory | Garrison activated, responded to threat 7487 | -7/Factory | Entered Lower Caves 7493 | -7/Lower Caves | Lost 5 parts (4n1u) 7737 | -7/Lower Caves | Build established: Scavenger-Gunner 7747 | -7/Lower Caves | A Derelict revealed a hidden shortcut to a safe place 7756 | -7/Lower Caves | Entered Zion 7803 | -7/Zion | System corruption cleaned by Quarantine Array 7899 | -7/Zion | Learned location of Data Miner (-6) 7959 | -7/Zion | Learned Factory non-interactive machine intel 8119 | -7/Zion | Given A8's code to call for help 8154 | -7/Zion | Given the Hacking Drone Bay 8156 | -7/Zion | Found Prototype Device 8466 | -7/Zion | Met Imprinter 8701 | -7/Zion | Build established: Gunner 8808 | -7/Zion | Learned location of Warlord (-5) 8965 | -7/Zion | Imprinted 8967 | -7/Zion | Declared Zion's savior 9410 | -7/Zion | Received a hallucinogenic algorithm 9439 | -7/Zion | Discovered new exit (range 11) 9505 | -7/Zion | Entered Proximity Caves 9505 | -6/Proximity Caves | Accompanied by 4 allies 9707 | -6/Proximity Caves | Attracted the attention of an 0b10 checkpoint 10042 | -6/Proximity Caves | Build established: Scavenger-Gunner 10102 | -6/Proximity Caves | Discovered new exit (range 10) 10118 | -6/Proximity Caves | Learned Factory machine intel 10211 | -6/Proximity Caves | Entered Factory 10211 | -6/Factory | Accompanied by 3 allies 10211 | -6/Factory | Evolved 2 slots: Power x1, Utility x1 10212 | -6/Factory | Loaded intel: 295 machine locations 10213 | -6/Factory | Loaded intel: 241 non-interactive machine locations 10492 | -6/Factory | Spotted B-75 Beast 10532 | -6/Factory | Destroyed B-75 Beast 10557 | -6/Factory | Lost 3 allies 10585 | -6/Factory | Retrieved Zion intel report: Branch Access 10585 | -6/Factory | Identified exit to Lower Caves 10586 | -6/Factory | Zion Fire squad teleported in 10682 | -6/Factory | Garrison activated, responded to threat 10829 | -6/Factory | Lost 3 allies 11225 | -6/Factory | Garrison activated, responded to threat 11362 | -6/Factory | Retrieved Zion intel report: Unaware Schematics 11463 | -6/Factory | Retrieved Zion intel report: Depthwide Sectors/-6 11649 | -6/Factory | Discovered new exit (range 5) 11775 | -6/Factory | Terminal network hard line cut 12117 | -6/Factory | Entered Lower Caves 14012 | -6/Lower Caves | Discovered new exit (range 3) 14058 | -6/Lower Caves | Entered another Lower Caves area 14063 | -6/Lower Caves | Spotted B-75 Beast 14075 | -6/Lower Caves | Destroyed B-75 Beast 14153 | -6/Lower Caves | Discovered new exit (range 3) 14345 | -6/Lower Caves | Build established: Scavenger-Tank 14576 | -6/Lower Caves | Learned Factory stockpile data 14920 | -6/Lower Caves | Discovered new exit (range 12) 15023 | -6/Lower Caves | Entered Data Miner 15025 | -6/Data Miner | Discovered new exit (range 6) 15055 | -6/Data Miner | Met Data Miner 15083 | -6/Data Miner | Learned location of Section 7 (-2) 15083 | -6/Data Miner | Acquired the access code to Warlord's prototype stash 15108 | -6/Data Miner | Received God Mode back door access code from Data Miner 15173 | -6/Data Miner | Entered Proximity Caves 15185 | -5/Proximity Caves | Learned 4 Factory zone layouts 15242 | -5/Proximity Caves | Acquired the password to a Derelict Tinkerer's latest research 15255 | -5/Proximity Caves | Found Prototype Special Weapon 15255 | -5/Proximity Caves | Identified Molecular Deconstructor 15282 | -5/Proximity Caves | Spotter reported a threat 15584 | -5/Proximity Caves | Caught by Unaware searching for contraband prototypes 15591 | -5/Proximity Caves | Caught by Unaware searching for contraband prototypes 16302 | -5/Proximity Caves | Discovered new exit (range 10) 16346 | -5/Proximity Caves | Entered Factory 16346 | -5/Factory | Evolved 2 slots: Utility x2 16347 | -5/Factory | Identified exit to Upper Caves 16348 | -5/Factory | Identified exit to Extension 16622 | -5/Factory | Retrieved Zion intel report: Prototype Schematics 16764 | -5/Factory | Repaired Arm. Wheel 17378 | -5/Factory | Retrieved Zion intel report: Emergency Access 17379 | -5/Factory | Zion Hacker squad teleported in 17388 | -5/Factory | Enhanced Grunt warped into view, answering call for help 17394 | -5/Factory | Enhanced Grunt warped into view, answering call for help 17576 | -5/Factory | Terminal network hard line cut 17665 | -5/Factory | Build established: Scavenger-Mutant 18260 | -5/Factory | Build established: Scavenger-Tank 18445 | -5/Factory | Discovered exit to Extension (range 5) 18816 | -5/Factory | Entered Extension 18870 | -5/Extension | Rescued a captive Derelict 18947 | -5/Extension | Retrieved Zion intel report: Prototype Schematics 18948 | -5/Extension | Zion Recon squad teleported in 19349 | -5/Extension | Retrieved Zion intel report: Component Schematics 19356 | -5/Extension | Retrieved Zion intel report: Component Stockpiles 19933 | -5/Extension | Spotted B-75 Beast 19945 | -5/Extension | Allies destroyed B-75 Beast 19964 | -5/Extension | Spotted B-75 Beast 19987 | -5/Extension | Destroyed B-75 Beast 20063 | -5/Extension | Discovered new exit (range 3) 20113 | -5/Extension | Retrieved Zion intel report: Unaware Schematics 20136 | -5/Extension | Rescued A7 20209 | -5/Extension | Terminal network hard line cut 20345 | -5/Extension | Rescued a captive Derelict 20346 | -5/Extension | Rescued a captive Derelict 20728 | -5/Extension | Discovered new exit (range 15) 20729 | -5/Extension | Discovered new exit (range 15) 20794 | -5/Extension | Entered Cetus 20794 | -5/Cetus | Accompanied by 11 allies (A7) 20799 | -5/Cetus | Acquired a Cetus Manufacturing Module code from A7 20815 | -5/Cetus | Spotted Cetus Guard 20816 | -5/Cetus | Spotted Cetus Guard 20819 | -5/Cetus | Destroyed Cetus Guard 20819 | -5/Cetus | Spotted Cetus Guard 20821 | -5/Cetus | Spotted Cetus Guard 20822 | -5/Cetus | Destroyed Cetus Guard 20822 | -5/Cetus | Destroyed Cetus Guard 20822 | -5/Cetus | Destroyed Cetus Guard 20936 | -5/Cetus | Escorted A7 to Cetus Mainframe 20961 | -5/Cetus | Started Cetus Manufacturing Module 20986 | -5/Cetus | Manufactured an Enhanced Grunt 21011 | -5/Cetus | Manufactured an Enhanced Grunt 21036 | -5/Cetus | Manufactured an Enhanced Grunt 21061 | -5/Cetus | Manufactured an Enhanced Grunt 21086 | -5/Cetus | Manufactured an Enhanced Grunt 21113 | -5/Cetus | Discovered new exit (range 15) 21174 | -5/Cetus | Entered Archives 21174 | -5/Archives | Accompanied by 15 allies (A7) 21179 | -5/Archives | Received a hacking code to weaken MAIN.C 21234 | -5/Archives | Discovered new exit (range 16) 21246 | -5/Archives | Lost 3 allies 21247 | -5/Archives | Discovered new exit (range 14) 21287 | -5/Archives | Unable to access archive contents 21296 | -5/Archives | Build established: Commander-Tank 21352 | -5/Archives | Discovered new exit (range 16) 21485 | -5/Archives | System corruption reached 10% 21486 | -5/Archives | Entered Factory 21486 | -4/Factory | Accompanied by 11 allies 21486 | -4/Factory | Evolved 2 slots: Utility x1, Weapon x1 21604 | -4/Factory | Retrieved Zion intel report: Branch Access 21604 | -4/Factory | Identified exit to Upper Caves 21735 | -4/Factory | Discovered new exit (range 7) 21896 | -4/Factory | Lost 3 allies 21966 | -4/Factory | Lost 3 allies 22168 | -4/Factory | Build established: Scavenger-Tank 22254 | -4/Factory | Cargo convoy interrupted 22255 | -4/Factory | Spotted Executioner 22290 | -4/Factory | Lost 3 allies 22339 | -4/Factory | System corruption reached 10% 22377 | -4/Factory | Entered Research 22377 | -3/Research | Evolved 2 slots: Propulsion x1, Utility x1 22579 | -3/Research | Spotted B-86 Titan 22664 | -3/Research | Destroyed B-86 Titan 22767 | -3/Research | Retrieved Zion intel report: Unaware Analyses 22942 | -3/Research | Build established: Scavenger-Skirmisher 23040 | -3/Research | Retrieved Zion intel report: Component Schematics 23097 | -3/Research | Retrieved Zion intel report: Depthwide Sectors/-3 23164 | -3/Research | Retrieved Zion intel report: Prototype Schematics 23437 | -3/Research | Found Fusion Bomb Launcher 23526 | -3/Research | System corruption reached 10% 23557 | -3/Research | Lost 4 parts (1n1u2w) 23711 | -3/Research | Retrieved Zion intel report: Emergency Access 23717 | -3/Research | Terminal network hard line cut 23761 | -3/Research | Discovered new exit (range 15) 23826 | -3/Research | Identified exit to Testing 23827 | -3/Research | Entered Testing 23880 | -3/Testing | Retrieved Zion intel report: Prototype Stockpiles 23918 | -3/Testing | Build established: Scavenger-Assassin 23920 | -3/Testing | Retrieved Zion intel report: Active Terminals 23984 | -3/Testing | Retrieved Zion intel report: Component Schematics 24031 | -3/Testing | Found Prototype Protection 24034 | -3/Testing | Identified Centrium Heavy Armor Plating 24058 | -3/Testing | Found Gamma Bomb Array 24079 | -3/Testing | Found Prototype Energy Gun 24079 | -3/Testing | Identified Hyp. EM Gauss Rifle 24118 | -3/Testing | Found Prototype Energy Cannon 24118 | -3/Testing | Identified Disintegrator 24247 | -3/Testing | Found Prototype Energy Cannon 24247 | -3/Testing | Identified Hpw. Disruptor Cannon 24389 | -3/Testing | Retrieved Zion intel report: Component Schematics 24758 | -3/Testing | Discovered new exit (range 13) 24828 | -3/Testing | Identified exit to Research 24959 | -3/Testing | Lost 4 parts (2n1u1w) 24984 | -3/Testing | Destroyed 7 combat bots 25140 | -3/Testing | Unstable Terrabomb Derivative detonated 25169 | -3/Testing | Entered Research 25169 | -2/Research | Evolved 2 slots: Power x1, Utility x1 25240 | -2/Research | Repaired Adv. Cooling System 25293 | -2/Research | Repaired Adv. Terrain Scanner 25641 | -2/Research | Build established: Scavenger-Skirmisher 25914 | -2/Research | Lost 5 parts (1p1n1u2w) 26017 | -2/Research | Lost 4 parts (3n1u) 26067 | -2/Research | Destroyed 10 combat bots 26269 | -2/Research | Zion Hacker squad teleported in 26345 | -2/Research | Cargo convoy interrupted 26347 | -2/Research | Spotted Striker 26349 | -2/Research | System corruption reached 10% 26355 | -2/Research | Spotted Executioner 26372 | -2/Research | Destroyed Executioner 26398 | -2/Research | Destroyed 8 combat bots 26398 | -2/Research | Released all parts (16) 26432 | -2/Research | Lost 15 parts (3p1n6u5w) 26447 | -2/Research | Core integrity fell below 50% 26457 | -2/Research | Destroyed Striker 26468 | -2/Research | Core integrity fell below 20% 26530 | -2/Research | Destroyed by S-43 Plague with Heavy Machine Gun Last Messages --------------- 26491_ Slammed into S-43 Plague. 26496_ System corrupted: Adv. Heavy Siege Treads rejected. 26496_ Acquired Adv. Heavy Siege Treads. 26500_ Slug penetrates Wall. 26501_ Acquired Lyr. Light Armor Plating. 26502_ Slug penetrates Wall. 26503_ Slammed into S-43 Plague. 26505_ Slug penetrates Wall. 26505_ Slug penetrates H-88 Terminator. 26506_ Slammed into S-43 Plague. 26507_ Slug penetrates Wall. 26509_ Dropped Lyr. Light Armor Plating. 26509_ Slug penetrates Wall. 26510_ Slammed into S-43 Plague. 26512_ Wall collapses. 26522_ System corrupted: Heat flow error (+281). 26523_ Adv. Heavy Siege Treads destroyed. 26526_ Acquired Nuclear Pulse Array. 26529_ S-43 Plague destroyed. Map ----- +----------------------------------------------------+ | ?????????????????????????????????????????????????? | | ??????????#####??????????????????????????????????? | | ???????? ??????????????????????????????????? | | ???????# ??????????????????????????????????? | | ???????# ??????????????????????????????????? | | ""?????#= ??????????????????????????????????? | | "??????# ??????????????????????????????????? | | "??????# ?????????????????????????????????? | | ???????# "" ?#??????????????????????????????? | | ???????# ""? #??????????????????????????????? | | ######## "" #??????????????????????????????? | | # S #??????????????????????????????? | | # "" #??????????????????????????????? | | # "" #??????????????????????????????? | | # "" #??????????????????????????????? | | ### # #??????????????????????????????? | | ## # #??????????????????????????????? | | ## #####/#############+##????????????????????? | | ## s +????????????????????? | | ## % s #????????????????????? | | # #????????????????????? | | #T #????????????????????? | | ## ########### #????????????????????? | | =## #?????????# == #????????????????????? | | ## #?????????+ #####+???????????????? | | ### #?????????# @ #?????????????? | | ??# #?????????# #?????????????? | | ??# #?????????# #### #?????????????? | | ??# #?????????# #??# #?????????????? | | ??# #?????????# #??######## #?????????????? | | ??# #?????????#^ #??????????? #?????????????? | | ??# ??????????# #???????????? #?????????????? | | ??# ??????????# #??????????????#?????????????? | | ???? ??????????# #????????????????????????????? | | ?????????????????# +????????????????????????????? | | ?????????????????# ?????????????????????????????? | | ?????????????????# ?????????????????????????????? | | ?????????????????? ?????????????????????????????? | | ?????????????????????????????????????????????????? | | ?????????????????????????????????????????????????? | | ?????????????????????????????????????????????????? | | ?????????????????????????????????????????????????? | | ?????????????????????????????????????????????????? | | ?????????????????????????????????????????????????? | | ?????????????????????????????????????????????????? | | ?????????????????????????????????????????????????? | | ?????????????????????????????????????????????????? | | ????? ???????????????????????????????????????????? | | ??? +?????????????????????????????????????????? | | ??? #?????????????????????????????????????????? | +----------------------------------------------------+ Best States ------------- Heat Dissipation 170 Coolant Potential 100 Energy Generation 59 Energy Capacity 1015 Matter Stores 400 Matter Capacity 400 Sight Range 16 Robot Scan Range 18 Terrain Scan Range 20 Terrain Scan Density 210 ECM Strength 2 Jamming Range 16 Base Temperature (-) 200 Armor Coverage 975 Resistance: KI 20 Resistance: TH 15 Utility Shielding 66 Weapon Shielding 66 Weapon Cycling 15 Evasion (%) 62 Targeting Accuracy 8 Core Analysis 6 Recoil Reduction 4 Energy Filtering 30 Item Schematics ----------------- Riot Gun | -7/Zion | Free Battle Cannon | -7/Zion | Free Flamer | -7/Zion | Free Slug Cannon | -7/Zion | Free Bore Cannon | -7/Zion | Free Gatling Laser | -7/Zion | Archive Imp. Thermal Generator | -7/Zion | Archive Phase Shifter | -7/Zion | Archive Med. Treads | -7/Zion | Archive Fusion Compressor | -7/Zion | Archive Component Analysis Suite | -7/Zion | Archive Adv. Shield Generator | -7/Zion | Archive Hvy. Machine Gun | -7/Zion | Archive Hvy. Missile Launcher | -7/Zion | Archive Corruption Screen | -7/Zion | Archive Fission Core | -7/Zion | Archive Matter Compressor | -7/Zion | Archive Greatsword | -7/Zion | Archive Antigrav System | -7/Zion | Archive Combat Drone Bay | -6/Data Miner | Free Lgt. Regenerative Plating | -6/Data Miner | Free Enh. Flexi-carbon Leg | -6/Data Miner | Free Exp. Heat Sink | -6/Data Miner | Free Hvy. Proton Cannon | -6/Data Miner | Free Impulse Thruster | -6/Data Miner | Free Imp. Force Field | -6/Data Miner | Free Adv. Concussive RPG | -6/Data Miner | Free Adv. Target Analyzer | -6/Data Miner | Free Impulse Thruster Array | -6/Data Miner | Free Adv. Corruption Screen | -6/Data Miner | Free Thermal Defense Suite | -5/Factory | Z-intel Cld. Airjet | -5/Factory | Z-intel Fusion Reactor | -5/Factory | Z-intel Hvy. Proton Missile Launcher | -5/Factory | Z-intel Enh. Coil Gun | -5/Factory | Z-intel Cld. Particle Cannon | -5/Factory | Z-intel Cld. Plasma Cannon | -5/Factory | Z-intel Neutron Cannon | -5/Factory | Z-intel Cld. Aerolev Unit | -5/Factory | Z-intel Lgt. Neutrino Core | -5/Factory | Z-intel Mni. Smartbomb Launcher | -5/Factory | Z-intel Gravity Neutralizer | -5/Extension | Z-intel Imp. Energy Well | -5/Extension | Z-intel Imp. KE Penetrator | -5/Extension | Z-intel Enh. Fission Core | -5/Extension | Z-intel Smartbomb Launcher | -5/Extension | Z-intel Prc. Matter Filter | -5/Extension | Z-intel Imp. Lightning Gun | -5/Extension | Z-intel Hvy. Gatling Laser | -5/Extension | Z-intel Cold Fusion Reactor | -5/Extension | Z-intel Plasma Sword | -5/Extension | Z-intel Multireflex Exoskeleton | -5/Extension | Z-intel Hyb. Fission Core | -5/Extension | Z-intel Imp. Shield Generator | -5/Extension | Z-intel Imp. Medium Armor Plating | -5/Extension | Z-intel Matter Filter | -5/Extension | Z-intel Imp. Terrain Scanner | -5/Extension | Z-intel Lrg. Storage Unit | -5/Extension | Z-intel ECM Suite | -5/Extension | Z-intel Imp. Melee Analysis Suite | -5/Extension | Z-intel Imp. Hacking Suite | -5/Extension | Z-intel Linear Gravjet | -5/Extension | Z-intel Point Defense System | -5/Extension | Z-intel Chainsword | -5/Extension | Z-intel Energy Well | -5/Extension | Z-intel Stasis Canceller | -5/Extension | Z-intel Lrg. Battery | -5/Extension | Z-intel IFF Parser | -5/Extension | Z-intel Hacking Suite | -3/Research | Z-intel Imp. Target Analyzer | -3/Research | Z-intel Imp. Linear Gravjet | -3/Research | Z-intel Disruptor Cannon | -3/Research | Z-intel Mni. Drone Bay | -3/Research | Z-intel Imp. Shock Absorption System | -3/Research | Z-intel Imp. Remote Datajack | -3/Research | Z-intel Mass Driver | -3/Research | Z-intel Fusion Bomb Launcher | -3/Research | Z-intel EM Shield | -3/Research | Z-intel Remote Force Field | -3/Research | Z-intel Launcher Loader | -3/Research | Z-intel Particle Reactor | -3/Research | Z-intel Antigrav Array | -3/Research | Z-intel Exp. Power Amplifier | -3/Research | Z-intel Com. Particle Reactor | -3/Research | Z-intel Ionic Axe | -3/Research | Z-intel Spectral Analyzer | -3/Research | Z-intel Com. Mass Driver | -3/Research | Z-intel Exp. Melee Analysis Suite | -3/Research | Z-intel Hvy. Wave Gun | -3/Research | Z-intel Quantum Shading Machine | -3/Research | Z-intel Centrium Heavy Treads | -3/Research | Z-intel Exp. Matter Compressor | -3/Research | Z-intel Exp. ECM Suite | -3/Research | Z-intel Imp. Powered Armor | -3/Testing | Z-intel Railgun | -3/Testing | Z-intel Adv. Recalibrator | -3/Testing | Z-intel Imp. Fusion Compressor | -3/Testing | Z-intel Hyp. Mass Driver | -3/Testing | Z-intel Tesla Rifle | -3/Testing | Z-intel Triangulator | -3/Testing | Z-intel Lgt. Particle Reactor | -3/Testing | Z-intel Quantum Capacitor | -3/Testing | Z-intel Adv. Power Amplifier | -3/Testing | Z-intel Imp. Field Recycling Unit | -3/Testing | Z-intel Biometal Medium Treads | -3/Testing | Z-intel Q-thruster | -3/Testing | Z-intel Imp. Arc Projector | -3/Testing | Z-intel Centrium Wheel | -3/Testing | Z-intel Transmission Jammer | -3/Testing | Z-intel Mic. Fission Core | -3/Testing | Z-intel Adv. Melee Analysis Suite | -3/Testing | Z-intel Imp. Remote Shield | -3/Testing | Z-intel Adv. Drone Bay | -3/Testing | Z-intel Force Field | -3/Testing | Z-intel Hvy. Disruptor Cannon | -3/Testing | Z-intel Focal Shield | -3/Testing | Z-intel Imp. Gyrokinetic Inverter | -3/Testing | Z-intel Recalibrator | -3/Testing | Z-intel Adv. Medium Treads | -3/Testing | Z-intel Imp. Focal Shield | -3/Testing | Z-intel Myomer Leg | -3/Testing | Z-intel Robot Schematics ------------------ O-24 Administrator | -7/Zion | Archive A-02 Transporter | -7/Zion | Archive K-01 Serf | -7/Zion | Archive L-41 Fighter | -6/Factory | Z-intel R-06 Scavenger | -6/Factory | Z-intel E-15 Imp | -6/Factory | Z-intel G-50 Soldier | -6/Factory | Z-intel H-66 Slayer | -6/Factory | Z-intel M-22 Extractor | -6/Data Miner | Free B-60 Warrior | -6/Data Miner | Free S-27 Virus | -6/Data Miner | Free T-07 Excavator | -5/Extension | Z-intel D-63 Destroyer | -5/Extension | Z-intel A-15 Conveyor | -5/Extension | Z-intel I-47 Archangel | -5/Extension | Z-intel Fabricated ------------ Nothing Repaired ---------- Lgt. Cannon | 71% | -10/Materials Arm. Wheel | 10% | -5/Factory Adv. Cooling System | 4% | -2/Research Adv. Terrain Scanner | 25% | -2/Research Studied --------- Wheel | -8/Materials | Hacked Gatling Laser | -6/Factory | Hacked Com. Wheel | -3/Testing | Hacked Alien Tech Used ----------------- None Achievements -------------- Freeware Challenges ------------ None Game ------ Seed SigixTargetingTendrils Manual? 0 Play Time 05:15:22 Cumulative 142.9 hours Start 2026.07.14 @ 19:36:41 End 2026.07.15 @ 15:19:13 Sessions 9 Manual Loads 0 Difficulty Rogue Special Mode None Game No. 65 Rogue 64 Adventurer 1 Explorer 0 Win Type - Total 1 Types 1/0/0/0/0/0/0/0/0/0 Lore% 49 Gallery% 47 Achievement% 38 Wizard Run 0 Options --------- Layout 1 ASCII 0 Keyboard 0 Movement Numpad Keybinds 0 Fullscreen 1 Font 24/Smallcaps Map View 50x35 Zoom Use 0% Tactical HUD 1 Map Filters NONE Filters NONE Steam 1 RUN: 6f33af5f-41b4-415e-ad7f-b64f9b6ffe0c